bitfinex-derivatives/quotes_ETHF0:USTF0_20250314
["timestamp","ask_amount","ask_price","bid_price","bid_amount"]
[1741914274029,0.00800876,1872.7,1872.6,3.58081925]
[1741914275124,0.00800876,1872.7,1872.6,3.58065665]
[1741914275325,1.06826,1872.9,1872.6,2.51222665]
[1741914275524,1.06826,1872.9,1872.8,1.06832]
[1741914275924,1.06826,1872.9,1872.8,3.78832]
[1741914276125,1.4224,1873.0,1872.8,3.78832]
[1741914276325,2.49064,1873.0,1872.9,1.3232]
[1741914277226,2.49064,1873.0,1872.9,2.39146]
[1741914277433,2.49064,1873.0,1872.9,1.3232]
[1741914278232,2.49064,1873.0,1872.9,2.39146]
[1741914278430,1.78628876,1873.1,1872.9,1.3232]
[1741914278631,2.48778876,1873.1,1873.0,1.3542]
[1741914285539,5.69558876,1873.1,1872.5,1.06847]
[1741914285844,1.06838,1872.7,1872.6,3.25554335]
[1741914286537,1.06849,1872.5,1872.4,0.00800876]
[1741914287137,1.76229,1872.5,1872.4,0.00800876]
[1741914287841,1.06849,1872.5,1872.4,0.00800876]
[1741914288042,2.44929,1872.5,1872.4,0.00800876]
[1741914288435,1.06849,1872.5,1872.4,0.00800876]
[1741914288636,1.06849,1872.5,1872.4,0.71830876]
[1741914288840,2.44929,1872.5,1872.4,2.12130876]
[1741914289533,5.65709,1872.5,1872.4,0.00800876]
[1741914289842,2.44929,1872.5,1872.4,0.00800876]
[1741914290233,5.65709,1872.5,1872.4,0.00800876]
[1741914291345,5.65709,1872.5,1872.4,8.76e-06]
[1741914293943,8.15709,1872.5,1872.4,8.76e-06]
[1741914297948,5.65709,1872.5,1872.4,8.76e-06]
[1741914298251,8.07009,1872.5,1872.4,8.76e-06]
[1741914301752,5.65709,1872.5,1872.4,8.76e-06]
[1741914301948,8.07009,1872.5,1872.4,8.76e-06]
[1741914308256,3.48149,1872.5,1872.4,8.76e-06]
[1741914308845,3.48149,1872.5,1872.4,1.37620876]
[1741914309259,1.06849,1872.5,1872.4,1.37620876]
[1741914309460,3.48149,1872.5,1872.4,1.37620876]
[1741914311356,26.37854,1872.9,1872.4,1.37620876]
[1741914311555,1.06843,1872.6,1872.5,0.6879]
[1741914311959,2.413,1872.8,1872.5,0.6879]
[1741914312162,2.413,1872.8,1872.5,1.75637]
[1741914312465,2.413,1872.8,1872.5,0.6879]
[1741914312761,1.06843,1872.6,1872.5,0.6879]
[1741914313759,5.6208,1872.9,1872.5,1.75639]
[1741914313957,5.6208,1872.9,1872.5,4.96419]
[1741914314356,1.06843,1872.6,1872.5,3.8957]
[1741914315259,1.06843,1872.6,1872.5,5.48368854]
[1741914315858,3.2078,1872.9,1872.5,4.41519854]
[1741914316050,1.06838,1872.7,1872.6,0.51928373]
[1741914316555,1.06838,1872.7,1872.6,0.51931365]
[1741914316759,2.67848876,1873.1,1872.6,1.58770011]
[1741914317065,1.06834,1872.8,1872.7,0.6938]
[1741914318662,1.06834,1872.8,1872.7,1.76218]
[1741914318854,1.06834,1872.8,1872.7,0.6938]
[1741914322754,1.06843,1872.6,1872.5,3.2078]
[1741914322961,1.06849,1872.5,1872.4,8.76e-06]
[1741914323963,5.67739,1872.5,1872.4,8.76e-06]
[1741914324170,7.06149,1872.5,1872.4,8.76e-06]
[1741914330786,4.27629,1872.5,1872.4,8.76e-06]
[1741914330986,3.48049,1872.5,1872.4,8.76e-06]
[1741914331388,3.48049,1872.5,1872.4,1.99670876]
[1741914331582,2.412,1872.5,1872.4,3.06525876]
[1741914331782,3.48049,1872.5,1872.4,3.06525876]
[1741914332281,1.06847,1872.6,1872.4,3.06525876]
[1741914332488,3.48038,1872.7,1872.6,1.06842]
[1741914332686,3.48038,1872.7,1872.6,2.47972]
[1741914332886,3.48038,1872.7,1872.6,1.4113]
[1741914337800,2.47978,1872.7,1872.6,1.4113]
[1741914338796,1.06838,1872.7,1872.6,1.4113]
[1741914341084,1.06835,1872.8,1872.6,5.13848788]
[1741914341290,1.06835,1872.8,1872.7,1.06838]
[1741914341597,1.4319,1872.9,1872.7,1.3395]
[1741914341890,3.21580876,1873.1,1872.8,3.8633]
[1741914342086,4.28396876,1873.1,1872.9,1.91945588]
[1741914342283,1.07616876,1873.1,1873.0,4.6081]
[1741914343292,1.07616876,1873.1,1873.0,1.4003]
[1741914343895,1.07616876,1873.1,1873.0,5.67631]
[1741914344597,0.00800876,1873.1,1873.0,5.67631]
[1741914347802,1.07615876,1873.1,1873.0,5.67631]
[1741914348302,1.07615876,1873.1,1873.0,4.6081]
[1741914348692,1.07615876,1873.1,1873.0,1.4003]
[1741914351900,1.06826,1872.9,1872.8,0.6555]
[1741914352200,1.06826,1872.9,1872.4,1.06853876]
[1741914352201,1.06838,1872.7,1872.6,1.369]
[1741914353798,1.4374,1872.8,1872.5,0.7093]
[1741914353998,2.50633,1872.6,1872.5,1.316]
[1741914354198,4.91633,1872.6,1872.5,1.316]
[1741914354404,1.06849,1872.5,1872.4,8.76e-06]
[1741914354604,3.17049,1872.5,1872.4,8.76e-06]
[1741914355193,6.37829,1872.5,1872.4,8.76e-06]
[1741914357706,6.37829,1872.5,1871.3,3.2078]
[1741914357707,8.01414,1872.4,1871.3,3.2078]
[1741914358008,1.06912,1871.4,1871.3,3.2078]
[1741914358308,1.06923,1871.3,1871.2,3.2078]
[1741914358605,2.50283,1871.3,1871.0,2.41582]
[1741914358806,2.50283,1871.3,1871.1,3.2078]
[1741914359005,2.51083876,1871.3,1871.2,1.3465]
[1741914359206,0.00800876,1871.3,1871.2,1.3465]
[1741914360208,1.07718876,1871.3,1871.2,1.3465]
[1741914360802,2.41618876,1871.3,1871.2,1.3465]
[1741914361011,1.34700876,1871.3,1871.2,1.3465]
[1741914361407,0.00800876,1871.3,1871.2,1.3465]
[1741914362101,0.00800876,1871.3,1871.2,2.41573]
[1741914362409,0.00800876,1871.3,1871.2,1.3465]
[1741914362805,0.00800876,1871.3,1871.2,2.41573]
[1741914363010,0.00800876,1871.3,1871.2,1.3465]
[1741914363610,1.06903,1871.6,1871.3,1.06914]
[1741914363810,1.06903,1871.6,1871.4,2.7665]
[1741914364106,1.06906,1871.5,1871.4,2.7665]
[1741914365309,2.49825876,1871.6,1871.4,2.7665]
[1741914365511,1.42920876,1871.6,1871.5,1.4334]
[1741914366106,2.49821876,1871.6,1871.5,1.4334]
[1741914368213,1.06929,1871.1,1871.0,0.00800876]
[1741914368808,1.3223,1871.1,1871.0,0.00800876]
[1741914369012,2.39159,1871.1,1871.0,0.00800876]
[1741914370509,0.7228,1871.5,1871.0,0.00800876]
[1741914370711,2.41900876,1871.6,1871.3,1.06917]
[1741914371006,1.07705876,1871.6,1871.4,3.823]
[1741914371211,1.07705876,1871.6,1871.5,1.4013]
[1741914372118,2.38845876,1871.6,1871.5,1.4013]
[1741914372620,0.00800876,1871.6,1871.5,2.47036]
[1741914375525,1.4375,1872.0,1871.5,13.35736]
[1741914375825,2.411,1872.1,1871.8,4.27668]
[1741914376013,2.39781,1872.0,1871.9,1.3702]
[1741914376417,2.39781,1872.0,1871.9,2.0227]
[1741914376815,0.00800876,1872.1,1872.0,1.06875]
[1741914377021,0.00800876,1872.1,1872.0,2.43895]
[1741914377519,0.00800876,1872.1,1872.0,5.64675]
[1741914377917,0.00800876,1872.1,1872.0,4.578]
[1741914378225,1.07672876,1872.1,1872.0,1.3702]
[1741914383925,0.00800876,1872.1,1872.0,4.578]
[1741914384129,0.00800876,1872.1,1872.0,5.64678]
[1741914385133,0.00800876,1872.1,1872.0,6.16370309]
[1741914385632,0.00800876,1872.1,1872.0,6.16365928]
[1741914385932,2.41800876,1872.1,1871.6,3.2078]
[1741914386137,1.06883,1871.9,1871.8,1.3802]
[1741914386634,1.06912,1871.4,1871.3,8.387]
[1741914386832,1.06912,1871.4,1871.2,3.2078]
[1741914387128,1.0691,1871.5,1871.3,2.44938]
[1741914387431,1.0691,1871.5,1871.4,1.3802]
[1741914387627,1.0691,1871.5,1871.4,4.588]
[1741914388027,1.0691,1871.5,1871.4,5.10348801]
[1741914388433,1.0691,1871.5,1871.4,4.588]
[1741914388727,1.0691,1871.5,1871.4,1.3802]
[1741914388922,2.41,1871.7,1871.4,4.588]
[1741914389227,1.06901,1871.6,1871.5,0.7061]
[1741914389430,2.46671,1871.6,1871.5,2.083]
[1741914389834,2.41,1871.7,1871.5,2.083]
[1741914390129,3.47897,1871.7,1871.6,1.3769]
[1741914390933,2.41,1871.7,1871.2,11.5948]
[1741914391123,1.06916,1871.4,1871.3,1.8332819]
[1741914391323,1.06916,1871.4,1871.3,1.3177]
[1741914392129,1.3311,1871.5,1871.1,1.3329]
[1741914392336,1.06923,1871.2,1871.1,1.3177]
[1741914392526,1.06923,1871.2,1871.0,0.00800876]
[1741914392527,1.06929,1871.1,1871.0,0.00800876]
[1741914392732,1.72109,1871.1,1871.0,0.00800876]
[1741914393037,4.13109,1871.1,1871.0,0.00800876]
[1741914393334,5.46219,1871.1,1871.0,0.00800876]
[1741914393833,5.46219,1871.1,1870.5,3.2078]
[1741914393834,1.06955,1870.7,1870.5,3.2078]
[1741914394031,1.06955,1870.7,1870.6,1.84158677]
[1741914394228,1.06949,1870.8,1870.6,1.84158677]
[1741914394431,1.06949,1870.8,1870.7,1.3274]
[1741914394931,4.911,1870.8,1870.2,8.387]
[1741914395131,1.06977,1870.3,1870.0,1.06989]
[1741914395330,1.06981,1870.2,1870.1,1.3274]
[1741914396223,2.411,1870.4,1870.0,0.00800876]
[1741914396530,2.411,1870.4,1870.1,1.3274]
[1741914396732,1.06981,1870.2,1870.1,1.3274]
[1741914397136,1.06977,1870.3,1870.1,2.39726]
[1741914397433,1.06977,1870.3,1870.2,1.3212]
[1741914398622,3.48073,1870.4,1870.2,1.3212]
[1741914398827,1.06975,1870.3,1870.2,1.3212]
[1741914399628,1.06986,1870.1,1870.0,0.00800876]
[1741914399824,3.52886,1870.1,1870.0,0.00800876]
[1741914401440,6.73666,1870.1,1870.0,0.00800876]
[1741914401630,3.52886,1870.1,1870.0,0.00800876]
[1741914402938,6.73666,1870.1,1870.0,0.00800876]
[1741914403842,3.52886,1870.1,1870.0,0.00800876]
[1741914405643,3.51986,1870.1,1870.0,0.00800876]
[1741914406544,3.51886,1870.1,1870.0,0.00800876]
[1741914408335,3.51886,1870.1,1870.0,1.36800876]
[1741914408639,1.06972,1870.2,1870.0,4.57580876]
[1741914408842,1.0697,1870.2,1870.1,0.6649]
[1741914409141,1.06964,1870.3,1870.1,0.6649]
[1741914409435,1.06964,1870.3,1870.2,4.6206]
[1741914409636,2.446,1870.7,1870.2,4.6206]
[1741914409845,2.446,1870.7,1870.2,5.69026]
[1741914410037,1.06957,1870.5,1870.3,1.06964]
[1741914410236,1.06957,1870.5,1870.4,5.3116]
[1741914410838,2.444,1870.7,1870.4,5.3116]
[1741914411143,1.06949,1870.6,1870.5,0.6649]
[1741914411346,1.06949,1870.6,1870.5,2.0777]
[1741914412242,1.06976,1870.1,1870.0,0.00800876]
[1741914412442,1.06976,1870.1,1870.0,0.66070876]
[1741914413749,1.06976,1870.1,1870.0,2.09850876]
[1741914413947,1.06976,1870.1,1870.0,5.30630876]
[1741914414143,2.442,1870.4,1870.0,6.37607876]
[1741914414345,3.51162,1870.4,1870.2,4.27749]
[1741914414548,3.51162,1870.4,1870.3,2.1465]
[1741914415046,1.06958,1870.5,1870.3,3.21613]
[1741914415236,1.06958,1870.5,1870.4,2.1197]
[1741914416847,2.5,1870.5,1870.0,0.00800876]
[1741914417046,1.06976,1870.1,1870.0,0.00800876]
[1741914417237,3.54576,1870.1,1870.0,0.00800876]
[1741914417749,3.54576,1870.1,1870.0,1.34610876]
[1741914420045,2.476,1870.1,1870.0,5.62371876]
[1741914420448,2.476,1870.1,1870.0,5.06516999]
[1741914420651,2.476,1870.1,1870.0,5.06517445]
[1741914420953,2.476,1870.1,1870.0,6.13498445]
[1741914421246,2.476,1870.1,1870.0,5.06516171]
[1741914421452,1.3714,1870.5,1870.1,1.06972]
[1741914421453,2.468,1870.4,1870.1,1.06972]
[1741914421649,2.468,1870.4,1870.2,1.83955295]
[1741914421851,3.53758,1870.4,1870.3,1.3283]
[1741914423146,3.53758,1870.4,1870.3,4.5361]
[1741914424460,3.53758,1870.4,1870.3,1.3283]
[1741914424654,1.0697,1870.2,1870.1,4.5606]
[1741914424842,1.0697,1870.2,1870.1,5.0721422]
[1741914425245,1.0697,1870.2,1870.1,5.65138093]
[1741914425454,1.0697,1870.2,1870.1,5.0721422]
[1741914425856,1.0697,1870.2,1870.1,4.5606]
[1741914426153,1.0697,1870.2,1870.1,5.07217533]
[1741914426355,1.0697,1870.2,1870.1,4.5606]
[1741914426556,1.0697,1870.2,1870.1,5.07218546]
[1741914426751,1.06976,1870.1,1870.0,0.00800876]
[1741914426956,4.91426,1870.1,1870.0,0.00800876]
[1741914432350,4.91426,1870.1,1870.0,1.34490876]
[1741914435149,4.91426,1870.1,1870.0,0.00800876]
[1741914435353,1.06998,1869.7,1869.6,3.2078]
[1741914435550,1.06998,1869.7,1869.6,3.71978061]
[1741914435952,1.06998,1869.7,1869.6,5.07198061]
[1741914436353,3.16258,1869.7,1869.6,1.3522]
[1741914436655,1.0701,1869.5,1869.4,3.2078]
[1741914436857,1.0701,1869.5,1869.4,1.09184172]
[1741914437057,1.0701,1869.5,1869.4,0.51201135]
[1741914437245,1.0701,1869.5,1869.4,3.71981135]
[1741914437546,1.3845,1869.6,1869.4,3.71981135]
[1741914437748,1.07004,1869.6,1869.5,2.16164855]
[1741914437949,1.07004,1869.6,1869.5,3.46734855]
[1741914438151,1.07004,1869.6,1869.5,2.39725855]
[1741914438359,0.00800876,1869.8,1869.7,1.06998]
[1741914438661,1.07793876,1869.8,1869.7,3.71981135]
[1741914438851,1.07793876,1869.8,1869.7,5.70551135]
[1741914439051,0.00800876,1869.8,1869.7,7.35482173]
[1741914439455,0.00800876,1869.8,1869.7,6.77549135]
[1741914439652,0.00800876,1869.8,1869.7,5.70551135]
[1741914439857,0.00800876,1869.8,1869.7,7.35474544]
[1741914440261,0.00800876,1869.8,1869.7,7.35419786]
[1741914441153,0.6743,1870.5,1870.1,1.06972]
[1741914441355,1.0697,1870.2,1869.7,5.10792]
[1741914441555,1.0697,1870.2,1870.1,4.27756]
[1741914441759,1.0697,1870.2,1870.1,5.36774962]
[1741914442056,1.327,1870.4,1870.1,5.36775032]
[1741914442260,0.00800876,1870.3,1870.2,2.15979915]
[1741914442460,0.00800876,1870.3,1870.2,5.36759915]
[1741914444164,0.00800876,1870.3,1870.2,6.08859915]
[1741914447665,0.00800876,1870.3,1870.2,6.08723224]
[1741914448064,0.00800876,1870.3,1870.2,8.58723224]
[1741914448267,2.421,1871.0,1870.8,1.06934]
[1741914448566,2.421,1871.0,1870.4,2.67393]
[1741914448567,3.49024,1871.0,1870.9,0.6544]
[1741914448870,1.06924,1871.0,1870.9,0.6544]
[1741914449064,1.06924,1871.0,1870.9,3.8622]
[1741914449365,2.38901876,1871.1,1870.9,4.93147]
[1741914449561,1.07718876,1871.1,1871.0,1.06924]
[1741914449766,0.00800876,1871.1,1871.0,1.06924]
[1741914450068,0.00800876,1871.1,1871.0,1.57894718]
[1741914450269,1.06908,1871.3,1871.0,3.5857771]
[1741914450464,1.06908,1871.3,1871.2,3.2078]
[1741914450961,1.06906,1871.4,1871.2,4.27693]
[1741914451158,1.06906,1871.4,1871.3,0.6654]
[1741914451362,2.38879876,1871.5,1871.3,0.6654]
[1741914451563,2.38879876,1871.5,1871.4,3.2078]
[1741914451958,0.00800876,1871.5,1871.4,4.27681]
[1741914452162,0.00800876,1871.5,1871.4,4.94681]
[1741914453269,1.0688,1871.8,1871.4,4.38548193]
[1741914453571,3.49175,1871.9,1871.7,3.2078]
[1741914453762,3.49175,1871.9,1871.7,4.27661]
[1741914453961,2.423,1871.9,1871.8,0.7197]
[1741914454169,1.06873,1871.9,1871.8,0.7197]
[1741914454862,2.44309876,1872.0,1871.8,3.19677]
[1741914455070,2.44309876,1872.0,1871.9,3.2078]
[1741914455270,2.44309876,1872.0,1871.9,4.6161]
[1741914455865,1.07669876,1872.0,1871.9,4.6161]
[1741914458273,1.07669876,1872.0,1871.9,3.2078]
[1741914458675,0.00800876,1872.0,1871.6,1.3336]
[1741914458876,0.00800876,1872.0,1871.5,3.2078]
[1741914458877,2.67208,1871.8,1871.5,3.2078]
[1741914459070,1.06907,1871.3,1871.2,4.5414]
[1741914459666,5.50276,1871.7,1871.2,4.5414]
[1741914459867,1.06904,1871.4,1871.2,5.61053]
[1741914460169,1.06907,1871.3,1871.2,4.5414]
[1741914460876,1.06906,1871.4,1871.2,4.5414]
[1741914461074,1.06907,1871.3,1871.2,4.5414]
[1741914461777,1.06913,1871.2,1871.1,0.00800876]
[1741914462771,4.08903,1871.5,1871.1,3.21580876]
[1741914462772,1.06903,1871.4,1871.1,3.21580876]
[1741914463075,1.06907,1871.3,1871.2,1.3417]
[1741914463873,1.3309,1871.4,1871.2,1.3417]
[1741914464072,3.49994,1871.6,1871.3,1.06905]
[1741914464268,3.8319,1871.6,1871.4,1.3908]
[1741914464468,1.06896,1871.5,1871.4,1.3908]
[1741914464669,2.46986,1871.5,1871.4,1.3908]
[1741914465777,1.06901,1871.4,1871.3,3.2078]
[1741914465970,2.46991,1871.4,1871.3,3.2078]
[1741914466367,2.46993,1871.4,1871.3,3.2078]
[1741914466768,1.4009,1871.4,1871.3,4.27687]
[1741914467065,2.42766,1871.5,1871.4,1.069]
[1741914467263,2.42766,1871.5,1871.4,1.3802]
[1741914467461,2.42766,1871.5,1871.4,2.44921]
[1741914468174,2.48296,1871.7,1871.4,1.3802]
[1741914468370,2.4276,1871.6,1871.5,3.2078]
[1741914468571,1.3587,1871.6,1871.5,4.588]
[1741914468767,2.4276,1871.6,1871.5,4.588]
[1741914470174,2.4276,1871.6,1871.5,5.65696]
[1741914470477,1.3587,1871.6,1871.5,5.65696]
[1741914470777,2.4276,1871.6,1871.5,5.65696]
[1741914471471,0.00800876,1872.0,1871.5,4.588]
[1741914471673,0.00800876,1872.0,1871.8,1.06878]
[1741914471674,1.3646,1871.9,1871.8,1.06878]
[1741914471976,3.49569876,1872.0,1871.8,2.49398]
[1741914472177,3.79160876,1872.0,1871.8,2.49398]
[1741914472373,3.49571876,1872.0,1871.9,1.4252]
[1741914473276,2.42700876,1872.0,1871.9,2.49393]
[1741914473476,3.49567876,1872.0,1871.9,1.4252]
[1741914474681,1.07667876,1872.0,1871.9,1.4252]
[1741914475275,1.06877,1871.9,1871.7,3.2078]
[1741914475476,1.06877,1871.9,1871.8,1.3841]
[1741914478069,0.00800876,1872.0,1871.7,3.2078]
[1741914478274,0.00800876,1872.0,1871.5,3.2078]
[1741914478275,1.0689,1871.6,1871.5,3.2078]
[1741914478475,1.0689,1871.6,1871.5,4.5571]
[1741914479483,1.0689,1871.6,1871.5,5.62606]
[1741914479683,1.0689,1871.6,1871.5,4.5571]
[1741914479989,1.0689,1871.6,1871.5,5.06744071]
[1741914480482,1.0689,1871.6,1871.5,4.5571]
[1741914480676,1.0689,1871.6,1871.5,1.3493]
[1741914481879,1.0689,1871.6,1871.5,2.41826]
[1741914482079,1.0689,1871.6,1871.5,6.13653011]
[1741914482483,1.0689,1871.6,1871.5,5.06757011]
[1741914482882,1.06888,1871.7,1871.5,6.13649011]
[1741914483091,1.40030876,1872.0,1871.6,2.50906041]
[1741914483092,2.42000876,1872.0,1871.6,2.50906041]
[1741914483289,3.48868876,1872.0,1871.8,4.27654]
[1741914483587,3.48868876,1872.0,1871.9,1.93117898]
[1741914483787,3.48868876,1872.0,1871.9,1.93090442]
[1741914484190,3.48868876,1872.0,1871.9,1.9308979]
[1741914484487,3.48868876,1872.0,1871.9,1.4208]
[1741914485189,1.06873,1871.9,1871.8,3.2078]
[1741914485389,2.48093,1871.9,1871.8,3.2078]
[1741914485792,2.48093,1871.9,1871.8,4.5228]
[1741914486192,2.48093,1871.9,1871.8,5.03284823]
[1741914487582,2.48093,1871.9,1871.8,4.5228]
[1741914488990,2.48093,1871.9,1871.8,5.0328651]
[1741914489785,2.48093,1871.9,1871.8,5.0327416]
[1741914490181,2.48093,1871.9,1871.8,4.5228]
[1741914492886,2.48093,1871.9,1871.8,5.03298541]
[1741914493187,2.48093,1871.9,1871.8,4.5228]
[1741914493381,1.06884,1871.7,1871.6,3.8892]
[1741914493688,1.06884,1871.7,1871.6,4.97761568]
[1741914494388,1.06884,1871.7,1871.6,1.19180276]
[1741914494592,1.06884,1871.7,1871.6,0.51040276]
[1741914494789,1.06884,1871.7,1871.6,3.71838438]
[1741914494994,1.06884,1871.7,1871.6,3.2078]
[1741914495295,2.41464,1871.7,1871.6,3.2078]
[1741914499096,2.41464,1871.7,1871.6,3.8896]
[1741914499395,5.09182876,1872.0,1871.6,4.4010827]
[1741914499700,1.06878,1871.8,1871.7,1.3138]
[1741914501193,2.42788,1871.8,1871.7,1.3138]
[1741914502096,2.42788,1871.8,1871.7,1.82510725]
[1741914503603,2.42788,1871.8,1871.7,1.82510809]
[1741914504101,1.06878,1871.8,1871.7,2.40408106]
[1741914504398,3.48769876,1872.0,1871.8,1.06873]
[1741914504589,3.48769876,1872.0,1871.9,0.6703]
[1741914504996,3.48769876,1872.0,1871.9,1.9739]
[1741914505203,4.87529876,1872.0,1871.9,1.9739]
[1741914507808,2.46429876,1872.0,1871.9,1.9739]
[1741914509204,4.60340876,1872.0,1871.6,3.2078]
[1741914509399,1.06884,1871.7,1871.6,3.2078]
[1741914509708,4.01336,1871.9,1871.5,1.3255]
[1741914509709,1.0689,1871.6,1871.5,1.3255]
[1741914509903,3.7797,1871.6,1871.5,1.3255]
[1741914510900,1.06913,1871.2,1871.1,3.21580876]
[1741914511099,1.06913,1871.2,1871.1,4.52110876]
[1741914511302,1.06911,1871.3,1871.1,6.10184894]
[1741914511503,1.06911,1871.3,1871.1,5.59027876]
[1741914512201,1.06911,1871.3,1871.2,1.3595]
[1741914516806,1.3891,1871.4,1871.1,3.86780876]
[1741914517007,3.09223,1871.2,1871.1,0.00800876]
[1741914517306,5.50323,1871.2,1871.1,0.00800876]
[1741914517512,6.20993,1871.2,1871.1,0.00800876]
[1741914520916,3.48013,1871.2,1871.1,0.00800876]
[1741914521415,1.06913,1871.2,1871.1,0.00800876]
[1741914522808,1.06913,1871.2,1871.1,3.21580876]
[1741914523014,1.06909,1871.3,1871.1,4.28496876]
[1741914523217,1.06909,1871.3,1871.2,1.3758]
[1741914523519,1.06909,1871.3,1871.2,2.0977]
[1741914524117,1.3063,1871.4,1871.2,2.0977]
[1741914524319,1.06901,1871.4,1871.3,5.2895]
[1741914524821,1.06901,1871.4,1871.3,6.35857]
[1741914525320,1.06901,1871.4,1871.3,5.2895]
[1741914526018,1.06901,1871.4,1871.3,1.3758]
[1741914528917,1.371,1871.5,1871.2,0.6913]
[1741914529119,2.50977,1871.3,1871.2,2.0747]
[1741914532526,2.50977,1871.3,1871.2,1.3834]
[1741914537235,1.06913,1871.2,1871.1,3.21580876]
[1741914537540,3.13273,1871.2,1871.1,5.09250152]
[1741914537934,3.13273,1871.2,1871.1,4.58060876]
[1741914538137,3.13273,1871.2,1871.1,1.37280876]
[1741914538340,3.13273,1871.2,1871.1,1.88499158]
[1741914538838,3.13273,1871.2,1871.1,1.88502183]
[1741914539339,3.13273,1871.2,1871.1,1.37280876]
[1741914539933,7.94427,1871.2,1870.7,3.2078]
[1741914540129,1.0693,1870.9,1870.8,1.94852618]
[1741914540336,1.0693,1870.9,1870.8,1.4358]
[1741914540636,2.4895,1870.9,1870.8,1.4358]
[1741914541239,2.4895,1870.9,1870.8,1.94857706]
[1741914541648,2.4895,1870.9,1870.8,1.4358]
[1741914541839,2.4895,1870.9,1870.8,1.94849131]
[1741914542035,2.4895,1870.9,1870.8,1.94847144]
[1741914542343,2.4895,1870.9,1870.8,1.4358]
[1741914543735,2.4895,1870.9,1870.8,1.94842308]
[1741914543933,2.4895,1870.9,1870.8,1.4358]
[1741914544129,1.07726876,1871.0,1870.8,2.52890894]
[1741914544336,1.07726876,1871.0,1870.9,3.72044546]
[1741914544530,1.07726876,1871.0,1870.9,5.81974546]
[1741914544739,1.07726876,1871.0,1870.9,2.0993]
[1741914545242,1.07726876,1871.0,1870.9,5.3071]
[1741914546943,1.07726876,1871.0,1870.9,6.40047636]
[1741914547644,0.00800876,1871.0,1870.9,6.40047636]
[1741914547848,0.00800876,1871.0,1870.9,7.46977636]
[1741914548341,0.00800876,1871.0,1870.9,6.95713845]
[1741914548648,0.00800876,1871.0,1870.9,7.46996216]
[1741914548842,1.06911,1871.3,1870.9,8.90066216]
[1741914549042,26.37989,1871.8,1871.2,3.2078]
[1741914549043,2.0735,1871.7,1871.2,3.2078]
[1741914549244,1.06887,1871.7,1871.5,4.27672]
[1741914549540,1.06887,1871.7,1871.6,1.09279141]
[1741914549744,1.06887,1871.7,1871.6,2.42049141]
[1741914549944,7.23039,1872.2,1871.6,2.42049141]
[1741914550146,0.00800876,1871.8,1871.7,4.15221141]
[1741914550340,0.00800876,1871.8,1871.7,7.36802017]
[1741914551345,0.00800876,1871.8,1871.7,6.78805247]
[1741914552045,0.00800876,1871.8,1871.7,6.78659603]
[1741914553551,0.00800876,1871.8,1871.7,7.36527127]
[1741914555242,0.00800876,1871.8,1871.7,6.78659603]
[1741914555751,1.06863,1872.1,1871.9,1.06867]
[1741914555955,1.06863,1872.1,1872.0,5.1987]
[1741914562159,1.41950876,1872.2,1872.0,5.1987]
[1741914562458,1.07657876,1872.2,1872.1,1.3766]
[1741914562651,1.07657876,1872.2,1872.1,2.0303]
[1741914564555,1.07657876,1872.2,1872.1,3.09891]
[1741914564754,1.07657876,1872.2,1872.1,2.0303]
[1741914567261,0.00800876,1872.2,1872.1,3.09891]
[1741914567661,1.06841,1872.5,1872.3,1.06847]
[1741914567855,1.06841,1872.5,1872.4,1.3464]
[1741914568062,1.06841,1872.5,1872.4,2.0505]
[1741914570469,2.43033807,1872.6,1872.4,3.11892]
[1741914570662,2.43033807,1872.6,1872.5,4.6177]
[1741914570860,2.43033807,1872.6,1872.5,5.2799]
[1741914571164,2.43033807,1872.6,1872.5,6.34828]
[1741914571165,0.00526807,1872.6,1872.5,6.34828]
[1741914571661,0.00526807,1872.6,1872.5,5.2799]
[1741914571858,0.00526807,1872.6,1872.5,6.34828]
[1741914571859,1.07359807,1872.6,1872.5,6.34828]
[1741914573267,1.07359807,1872.6,1872.5,5.2799]
[1741914576164,1.07359807,1872.6,1872.5,6.34828]
[1741914577664,1.07359807,1872.6,1872.5,6.85801353]
[1741914578268,0.00526807,1872.6,1872.5,6.34828]
[1741914578475,0.00526807,1872.6,1872.5,6.85833815]
[1741914579073,1.06823,1872.8,1872.5,6.36752863]
[1741914579275,1.06823,1872.8,1872.7,3.2078]
[1741914579672,1.06823,1872.8,1872.7,4.5298]
[1741914580262,1.06823,1872.8,1872.7,1.322]
[1741914580470,1.3241,1872.9,1872.5,3.87]
[1741914580671,1.3241,1872.9,1872.6,1.322]
[1741914580672,3.08117,1872.7,1872.6,1.322]
[1741914581668,3.08117,1872.7,1872.5,3.2078]
[1741914581669,1.06833,1872.6,1872.5,3.2078]
[1741914581874,3.06703,1872.6,1872.5,3.2078]
[1741914582877,3.06703,1872.6,1872.5,4.53]
[1741914584078,1.3241,1872.6,1872.5,4.53]
[1741914584277,2.39243,1872.6,1872.5,5.2124]
[1741914587074,2.39243,1872.6,1872.5,4.53]
[1741914589378,1.06833,1872.6,1872.5,4.53]
[1741914589579,1.06833,1872.6,1872.5,5.04095532]
[1741914589878,1.06833,1872.6,1872.5,4.53]
[1741914590081,2.4284,1872.7,1872.5,5.04099676]
[1741914590274,2.4284,1872.7,1872.6,2.48093]
[1741914590275,1.0683,1872.7,1872.6,2.48093]
[1741914590479,1.0683,1872.7,1872.6,2.99187577]
[1741914590677,2.0636,1872.9,1872.6,2.48093]
[1741914590889,1.06826,1872.8,1872.7,5.3044]
[1741914593186,1.06826,1872.8,1872.7,5.81532214]
[1741914593483,1.06826,1872.8,1872.7,5.3044]
[1741914593685,1.06826,1872.8,1872.7,6.88364849]
[1741914594187,1.06826,1872.8,1872.7,5.81537849]
[1741914594582,1.06826,1872.8,1872.7,6.88364849]
[1741914595586,1.06826,1872.8,1872.7,5.81579253]
[1741914596287,1.06826,1872.8,1872.7,6.88406253]
[1741914597283,1.06826,1872.8,1872.7,7.46388046]